{"text_format":"1","workbook":"xlsx","n_sheets":4,"sheets":["Data","البيانات","المحولين","Target"],"not_rendered":{"charts":0,"images":0,"macros":1,"external_links":1,"defined_names":5,"comments":0,"pivot_tables":0},"unopened":[],"bounds":{"document_bytes":16777216,"sheet_cells":100000,"rows_first":2000,"rows_last":500,"rows_between":2000,"halvings":0,"cell_chars":16384,"cell_head_chars":4096},"cells_cut":0,"cells_raw":0,"read":"whole","date_system":"1900"}

{"sheet":"Data","index":0,"n_rows":15,"n_cols":6,"rows_kept":15,"cut":false,"hidden":false,"merged":[]}
[]
[]
[]
[]
["م","اسم","حالة القيد","الديانة","تاريخ الميلاد","البيان"]
[1,"أحمد 1","منقول","مسلم","2017-07-01"]
[2,"أحمد 2","باق","مسلم","2017-07-02"]
[3,"أحمد 3","منقول","مسلم","2017-07-03"]
[4,"أحمد 4","باق","مسلم","2017-07-04","محول من المدرسة "]
[5,"أحمد 5","منقول","مسلم","2017-07-05"]
[6,"أحمد 6","باق","مسلم","2017-07-06"]
[7,"أحمد 7","منقول","مسلم","2017-07-07","محول من المدرسة "]
[8,"أحمد 8","باق","مسلم","2017-07-08"]
[9,"أحمد 9","منقول","مسلم","2017-07-09"]
[10,"أحمد 10","باق","مسلم","2017-07-10","محول من المدرسة "]

{"sheet":"البيانات","index":1,"n_rows":105,"n_cols":12,"rows_kept":105,"cut":false,"hidden":false,"merged":[]}
[1]
[11]
[1]
[1]
[1]
[1]
["م","الاســــــــــم","النوع","تاريخ الميلاد","يوم","شهر","سنة","الديانة","المدرسة\nالابتدائي","حالة القيد","التحويل","الفصل"]
[{"$f":"IF(B8=\"\",\"\",ROW()-7)","v":1},"احمد ايهاب محمد محمد خضر","ذكر",null,{"$f":"IF(D8=\"\",\"\",DATEDIF(D8,calcDAT,\"md\"))","v":""},{"$f":"IF(D8=\"\",\"\",DATEDIF(D8,calcDAT,\"ym\"))","v":""},{"$f":"IF(D8=\"\",\"\",DATEDIF(D8,calcDAT,\"y\"))","v":""},"مسلم","اسامة بن زيد","مستجد"]
[2,"احمد تامر محمد بدوي محمد بلال","ذكر",null,"","","","مسلم","اسامة بن زيد","مستجد"]
[3,"احمد جمال عبد الفتاح ابراهيم حسن","ذكر",null,"","","","مسلم","اسامة بن زيد","مستجد"]
[4,"احمد رمضان خلف محمد الصغير","ذكر",null,"","","","مسلم","اسامة بن زيد","مستجد","حول"]
[5,"احمد عبد الله سالم عبد اللاة سليمان","ذكر",null,"","","","مسلم","اسامة بن زيد","مستجد"]
[6,"احمد محمد احمد محمد السيد","ذكر",null,"","","","مسلم","اسامة بن زيد","مستجد"]
[7,"احمد محمد احمد محمود ابراهيم","ذكر",null,"","","","مسلم","اسامة بن زيد","مستجد"]
[8,"احمد محمد احمد مصطفى المعصراني","ذكر",null,"","","","مسلم","اسامة بن زيد","مستجد"]
[9,"احمد محمد الشبراوي ابراهيم بدوي","ذكر",null,"","","","مسلم","اسامة بن زيد","مستجد"]
[10,"احمد محمد ذكي محفوظ الشريف","ذكر",null,"","","","مسلم","اسامة بن زيد","مستجد"]
[11,"احمد محمد علي زناتي احمد زناتي","ذكر",null,"","","","مسلم","اسامة بن زيد","مستجد"]
[12,"احمد محمد فتحي عزب محمد","ذكر",null,"","","","مسلم","اسامة بن زيد","مستجد"]
[13,"احمد محمد لطفي محمد علي بركات","ذكر",null,"","","","مسلم","اسامة بن زيد","مستجد"]
[14,"احمد محمد محمود ياسين النشار","ذكر",null,"","","","مسلم","اسامة بن زيد","مستجد"]
[15,"احمد محمود حسن محمود حسن","ذكر",null,"","","","مسلم","اسامة بن زيد","مستجد"]
[16,"احمد هاني احمد محمد عبد الغني","ذكر",null,"","","","مسلم","اسامة بن زيد","مستجد"]
[17,"احمد وائل عبد اللطيف احمد عبد اللطيف","ذكر",null,"","","","مسلم","اسامة بن زيد","مستجد"]
[18,"احمد وليد عبد المعز عبد الحليم حسن","ذكر",null,"","","","مسلم","اسامة بن زيد","مستجد"]
[19,"ادم سيد حمدي محفوظ محمد","ذكر",null,"","","","مسلم","اسامة بن زيد","مستجد"]
[20,"ادم هشام لطفي شفيق محمد","ذكر",null,"","","","مسلم","اسامة بن زيد","مستجد"]
[21,"ادم احمد عبد الحمد محمد عبد المعطي","ذكر",null,"","","","مسلم","اسامة بن زيد","مستجد"]
[22,"ادم احمد عبد اللطيف مرزوق ابراهيم","ذكر",null,"","","","مسلم","اسامة بن زيد","مستجد"]
[23,"ادم ناصر جابر عبد الحميد","ذكر",null,"","","","مسلم","اسامة بن زيد","مستجد"]
[24,"ادهم هاني بدوي عبد الوهاب السيد","ذكر",null,"","","","مسلم","اسامة بن زيد","مستجد"]
[25,"اسامة محمد حمودة حسن الهواري","ذكر",null,"","","","مسلم","اسامة بن زيد","مستجد"]
[26,"اسلام مجدي احمد محمد محمود","ذكر",null,"","","","مسلم","اسامة بن زيد","مستجد"]
[27,"اسلام محمد سعيد محمد علي","ذكر",null,"","","","مسلم","اسامة بن زيد","مستجد"]
[28,"الحسين احمد حسن عبد الحميد احمد","ذكر",null,"","","","مسلم","اسامة بن زيد","مستجد"]
[29,"بدر جمال حنفي محمود حسانين","ذكر",null,"","","","مسلم","اسامة بن زيد","مستجد"]
[30,"بلال محمد مسعد ابراهيم مصطفى","ذكر",null,"","","","مسلم","اسامة بن زيد","مستجد"]
[31,"بيتر جرجس رياض كامل لوندي","ذكر",null,"","","","مسيحي","اسامة بن زيد","مستجد"]
[32,"بيتر شنودة انور خليل دقدق","ذكر",null,"","","","مسيحي","اسامة بن زيد","مستجد"]
[33,"بيشوي جورج رشدي جوارجي شاروييم","ذكر",null,"","","","مسيحي","اسامة بن زيد","مستجد"]
[34,"بيشوي منير فؤاد كامل رزق","ذكر",null,"","","","مسيحي","اسامة بن زيد","مستجد"]
[35,"توني ميلاد لطفي بشاي سيدوس","ذكر",null,"","","","مسيحي","اسامة بن زيد","مستجد"]
[36,"تيام فريد ابراهيم عبد المجيد","ذكر",null,"","","","مسلم","اسامة بن زيد","مستجد"]
[37,"حازم امام صالح عبد الله سيد","ذكر",null,"","","","مسلم","اسامة بن زيد","مستجد"]
[38,"حسام الدين حسن احمد سيد ابراهيم","ذكر",null,"","","","مسلم","اسامة بن زيد","مستجد"]
[39,"حسام علي عبد الشافي محمود الدسوقي","ذكر",null,"","","","مسلم","اسامة بن زيد","مستجد"]
[40,"حسن احمد محمد حسن احمد","ذكر",null,"","","","مسلم","اسامة بن زيد","مستجد"]
[41,"حسن حسن عبد الرحمن يوسف رمضان","ذكر",null,"","","","مسلم","اسامة بن زيد","مستجد"]
[42,"حسين جهاد علي ابو العزم علي","ذكر",null,"","","","مسلم","اسامة بن زيد","مستجد"]
[43,"حسين عبد المحسن حسين يوسف حسين","ذكر",null,"","","","مسلم","اسامة بن زيد","مستجد"]
[44,"حلمي غازي حلمي عبد الحميد","ذكر",null,"","","","مسلم","اسامة بن زيد","مستجد"]
[45,"ربيع خالد صابر حسن سيد","ذكر",null,"","","","مسلم","اسامة بن زيد","مستجد"]
[46,"زياد عبد الدائم عبد الحميد سلامة حسن","ذكر",null,"","","","مسلم","اسامة بن زيد","مستجد"]
[47,"زياد عمرو عصام ابراهيم محمد","ذكر",null,"","","","مسلم","اسامة بن زيد","مستجد"]
[48,"زياد محمد السيد جمعة","ذكر",null,"","","","مسلم","اسامة بن زيد","مستجد"]
[49,"زياد محمد زين محمد حسانين","ذكر",null,"","","","مسلم","اسامة بن زيد","مستجد"]
[50,"سعيد ايمن سعيد بكر عبد الحميد","ذكر",null,"","","","مسلم","اسامة بن زيد","مستجد"]
[51,"سمير فتحي محمد فخري احمد","ذكر",null,"","","","مسلم","اسامة بن زيد","مستجد"]
[52,"سيد علي حسن عبد المحسن بخيت","ذكر",null,"","","","مسلم","اسامة بن زيد","مستجد"]
[53,"سيف الدين احمد السيد احمد محرم","ذكر",null,"","","","مسلم","اسامة بن زيد","مستجد"]
[54,"شريف اشرف كمال احمد مهران","ذكر",null,"","","","مسلم","اسامة بن زيد","مستجد"]
[55,"صلاح احمد صابر صالح محمد","ذكر",null,"","","","مسلم","اسامة بن زيد","مستجد"]
[56,"طه عبد العزيز امين امام شحاته","ذكر",null,"","","","مسلم","اسامة بن زيد","مستجد"]
[57,"عاطف هاني محمد عبد الحميد","ذكر",null,"","","","مسلم","اسامة بن زيد","مستجد"]
[58,"عبد الرحمن ابراهيم عيد ابراهيم احمد","ذكر",null,"","","","مسلم","اسامة بن زيد","مستجد"]
[59,"عبد الرحمن ابراهيم كمال دسوقي ابراهيم","ذكر",null,"","","","مسلم","اسامة بن زيد","مستجد"]
[60,"عبد الرحمن ابراهيم لطفي شفيق البري","ذكر",null,"","","","مسلم","اسامة بن زيد","مستجد"]
[61,"عبد الرحمن احمد حمدي محمود","ذكر",null,{"$f":"IF(D68=\"\",\"\",DATEDIF(D68,calcDAT,\"md\"))","v":""},{"$f":"IF(D68=\"\",\"\",DATEDIF(D68,calcDAT,\"ym\"))","v":""},{"$f":"IF(D68=\"\",\"\",DATEDIF(D68,calcDAT,\"y\"))","v":""},"مسلم","اسامة بن زيد","مستجد"]
[62,"عبد الرحمن ايمن عبد ربة عزب السيد","ذكر",null,"","","","مسلم","اسامة بن زيد","مستجد"]
[63,"عبد الرحمن سعيد مصطفى يوسف مرعي","ذكر",null,"","","","مسلم","اسامة بن زيد","مستجد"]
[64,"عبد الرحمن عبد الحكيم عامر مليجي فرج","ذكر",null,"","","","مسلم","اسامة بن زيد","مستجد"]
[{"$f":"IF(B72=\"\",\"\",ROW()-7)","v":65},"عبد الرحمن محمد ابو بكر احمد علي","ذكر",null,"","","","مسلم","اسامة بن زيد","مستجد"]
[66,"عبد الرحمن ناصر احمد علي","ذكر",null,"","","","مسلم","اسامة بن زيد","مستجد"]
[67,"عبد السلام هاني عبد السلام ابو زيد جاد","ذكر",null,"","","","مسلم","اسامة بن زيد","مستجد"]
[68,"عبد العال علي عبد العال محمود محمد","ذكر",null,"","","","مسلم","اسامة بن زيد","مستجد"]
[69,"عبد الله اسامه عبد النبي عبد المجيد عبد النبي","ذكر",null,"","","","مسلم","اسامة بن زيد","مستجد"]
[70,"عبد الله خالد عبد الله ابراهيم حجازي","ذكر",null,"","","","مسلم","اسامة بن زيد","مستجد"]
[71,"عبد الله سامح السعيد احمد زناتي","ذكر",null,"","","","مسلم","اسامة بن زيد","مستجد"]
[72,"عبد الله سعيد حسين اسماعيل الصباغ","ذكر",null,"","","","مسلم","اسامة بن زيد","مستجد"]
[73,"عبد الوهاب محمد عبد الستار محمد درويش","ذكر",null,"","","","مسلم","اسامة بن زيد","مستجد"]
[74,"عز الدين احمد سليمان لبيب سليمان","ذكر",null,"","","","مسلم","اسامة بن زيد","مستجد"]
[75,"علاء خالد عبد الوهاب عبد السميع احمد","ذكر",null,"","","","مسلم","اسامة بن زيد","مستجد"]
[76,"عمار سيد سعد عبد الله سليم","ذكر",null,"","","","مسلم","اسامة بن زيد","مستجد"]
[77,"عمار محمود محمد محمد احمد","ذكر",null,"","","","مسلم","اسامة بن زيد","مستجد"]
[78,"عمر احمد محمد محمد طعيمة","ذكر",null,"","","","مسلم","اسامة بن زيد","مستجد"]
[79,"عمر سعيد محمود مصطفى يوسف","ذكر",null,"","","","مسلم","اسامة بن زيد","مستجد"]
[80,"عمر سيد رحيم فرج حسنين شلبي","ذكر",null,"","","","مسلم","اسامة بن زيد","مستجد"]
[81,"عمر سيد عبد السلام محمد عبد المعطي","ذكر",null,"","","","مسلم","اسامة بن زيد","مستجد"]
[82,"عمر محمد حسنين فريد حسنين","ذكر",null,"","","","مسلم","اسامة بن زيد","مستجد"]
[83,"عمر محمد حسين امام محمد","ذكر",null,"","","","مسلم","اسامة بن زيد","مستجد"]
[84,"عمر محمد علي عبد السلام","ذكر",null,"","","","مسلم","اسامة بن زيد","مستجد"]
[85,"عمر مصطفى احمد كمال غريب","ذكر",null,"","","","مسلم","اسامة بن زيد","مستجد"]
[86,"عمر مصطفى اسماعيل عبد الرازق سلامة","ذكر",null,"","","","مسلم","اسامة بن زيد","مستجد"]
[87,"عمر هشام جمعة عبد اللطيف حسين","ذكر",null,"","","","مسلم","اسامة بن زيد","مستجد"]
[88,"عمر وليد جاد عبد الغفار","ذكر",null,"","","","مسلم","اسامة بن زيد","مستجد"]
[89,"عمرو ابو شامة عبد الحي عبد الصبور","ذكر",null,"","","","مسلم","اسامة بن زيد","مستجد"]
[90,"عمرو حسين محمد السيد عطية","ذكر",null,"","","","مسلم","اسامة بن زيد","مستجد"]
[91,"عمرو خالد صفوت مصطفى محمد","ذكر",null,"","","","مسلم","اسامة بن زيد","مستجد"]
[92,"عمرو سامي صلاح عبد ربه السيد","ذكر",null,"","","","مسلم","اسامة بن زيد","مستجد"]
[93,"عمرو شحاتة عبد الله احمد حمزة","ذكر",null,"","","","مسلم","اسامة بن زيد","مستجد"]
[94,"عواد محمد عواد عيد عواد","ذكر",null,"","","","مسلم","اسامة بن زيد","مستجد"]
[95,"فارس عمرو سعيد عبد العليم علي","ذكر",null,"","","","مسلم","اسامة بن زيد","مستجد"]
[96,"كرم محمد حسن محمد عيسى","ذكر",null,"","","","مسلم","اسامة بن زيد","مستجد"]
[97,"كريم رضا عبد السلام محمد احمد","ذكر",null,"","","","مسلم","اسامة بن زيد","مستجد"]
[98,"كريم عبد العزيز السيد عبد العزيز","ذكر",null,"","","","مسلم","اسامة بن زيد","مستجد"]

{"sheet":"المحولين","index":2,"n_rows":7,"n_cols":12,"rows_kept":7,"cut":false,"hidden":false,"merged":[]}
[]
[]
[]
[]
[]
[]
["م","الاســــــــــم","النوع","تاريخ الميلاد","يوم","شهر","سنة","الديانة","المدرسة\nالابتدائي","حالة القيد","التحويل","الفصل"]

{"sheet":"Target","index":3,"n_rows":12,"n_cols":6,"rows_kept":12,"cut":false,"hidden":false,"merged":[]}
[]
[]
[]
[]
["م","اسم","حالة القيد","الديانة","تاريخ الميلاد","البيان"]
[4,"أحمد 4","باق","مسلم","2017-07-04","محول من المدرسة "]
[7,"أحمد 7","منقول","مسلم","2017-07-07","محول من المدرسة "]
[10,"أحمد 10","باق","مسلم","2017-07-10","محول من المدرسة "]
[4,"أحمد 4","باق","مسلم","2017-07-04","محول من المدرسة "]
[7,"أحمد 7","منقول","مسلم","2017-07-07","محول من المدرسة "]
[10,"أحمد 10","باق","مسلم","2017-07-10","محول من المدرسة "]
[9,"أحمد 50","منقول","مسلم","2017-07-09","محول من المدرسة "]